bitfinex/quotes_SOLUSD_20240713
["timestamp","ask_amount","ask_price","bid_price","bid_amount"]
[1720897704510,7.2653989,140.0,139.97,11.99]
[1720897721339,7.2653989,140.0,139.91,6.2279]
[1720897721545,7.2653989,140.0,139.96,11.99]
[1720897722149,19.2553989,140.0,139.95,11.99]
[1720897722444,7.2653989,140.0,139.96,11.99]
[1720897724724,7.2653989,140.0,139.93,11.99]
[1720897724938,7.2653989,140.0,139.97,11.99]
[1720897725938,7.2653989,140.0,139.93,11.99]
[1720897726258,7.2653989,140.0,139.96,11.99]
[1720897728443,7.2653989,140.0,139.97,11.99]
[1720897732752,7.2653989,140.0,139.92,65.0]
[1720897732953,7.2653989,140.0,139.96,11.99]
[1720897742074,6.7653989,140.0,139.96,11.99]
[1720897743336,6.7653989,140.0,139.98,11.99]
[1720897743547,6.7653989,140.0,139.99,11.99]
[1720897743849,0.6943989,140.0,139.99,11.99]
[1720897746043,0.6943989,140.0,139.93,63.1548]
[1720897746249,0.6943989,140.0,139.94,65.0]
[1720897746455,0.6943989,140.0,139.99,11.99]
[1720897752555,0.6943989,140.0,139.95,0.46133381]
[1720897752763,0.6943989,140.0,139.99,11.99]
[1720897764453,0.6943989,140.0,139.99,56.99]
[1720897770454,0.6943989,140.0,139.99,68.98]
[1720897770864,0.6943989,140.0,139.99,70.4080646]
[1720897771359,15.3072,140.05,139.99,70.4080646]
[1720897771568,15.3072,140.05,140.04,11.99]
[1720897771956,6.4948,140.08,140.04,11.99]
[1720897772155,6.4948,140.08,140.06,11.99]
[1720897772374,6.4948,140.08,140.05,11.99]
[1720897775866,6.4948,140.08,140.04,11.99]
[1720897777058,6.4948,140.08,140.0,65.0]
[1720897777274,6.4948,140.08,140.04,11.99]
[1720897778894,6.4948,140.08,140.05,11.99]
[1720897782875,6.4948,140.08,140.06,11.99]
[1720897784893,6.4948,140.08,140.07,11.99]
[1720897785588,6.4948,140.08,140.06,11.99]
[1720897785970,6.4948,140.08,140.0,112.96]
[1720897786166,15.8874,140.07,139.97,16.4037]
[1720897786384,27.8774,140.04,139.99,11.99]
[1720897786768,15.8874,140.04,139.99,11.99]
[1720897787077,15.8874,140.04,140.0,11.99]
[1720897787388,27.8774,140.04,139.99,11.99]
[1720897789895,27.8774,140.04,139.94,1.42628353]
[1720897790096,11.99,140.03,139.99,11.99]
[1720897791393,11.99,140.03,139.98,11.99]
[1720897791795,15.8874,140.04,139.99,11.99]
[1720897791967,27.8774,140.04,139.99,11.99]
[1720897795491,15.8874,140.04,139.99,11.99]
[1720897795696,15.8874,140.04,140.0,11.99]
[1720897796202,15.8874,140.04,140.01,11.99]
[1720897796569,15.8874,140.04,140.02,11.99]
[1720897797081,6.4171,140.05,140.0,11.99]
[1720897797280,16.1921,140.07,140.04,11.99]
[1720897797588,16.1921,140.07,140.06,11.99]
[1720897798386,16.1921,140.07,140.05,11.99]
[1720897800097,16.1921,140.07,140.04,11.99]
[1720897801179,16.1921,140.07,140.05,11.99]
[1720897804797,16.1921,140.07,140.04,11.99]
[1720897807192,16.1921,140.07,140.05,11.99]
[1720897807717,6.0505,140.09,140.06,11.99]
[1720897807902,6.0505,140.09,140.07,11.99]
[1720897808293,6.0505,140.09,140.08,11.99]
[1720897808478,16.1921,140.11,140.08,11.99]
[1720897808894,16.1921,140.11,140.09,11.99]
[1720897809898,16.1921,140.11,140.08,11.99]
[1720897813990,16.1921,140.11,140.09,11.99]
[1720897814379,16.1921,140.11,140.0,76.627]
[1720897814380,16.1921,140.11,140.1,11.99]
[1720897814584,16.1921,140.11,140.02,6.1248]
[1720897814806,16.1921,140.11,140.09,11.99]
[1720897816900,6.0505,140.13,140.09,11.99]
[1720897817103,6.0505,140.13,140.1,13.41669051]
[1720897817299,0.8724291,140.14,140.11,11.99]
[1720897817505,0.8724291,140.14,140.08,1.42732488]
[1720897817506,0.8724291,140.14,140.12,11.99]
[1720897818284,0.8724291,140.14,140.13,11.99]
[1720897818500,0.8724291,140.14,140.12,11.99]
[1720897819199,0.8724291,140.14,140.05,15.4699]
[1720897819406,0.8724291,140.14,140.12,11.99]
[1720897819907,0.8724291,140.14,140.11,11.99]
[1720897822387,0.8724291,140.14,140.13,11.99]
[1720897823008,0.8724291,140.14,140.05,24.61718045]
[1720897823213,0.8724291,140.14,140.12,11.99]
[1720897823507,0.8724291,140.14,140.13,11.99]
[1720897825791,0.8724291,140.14,140.07,47.96]
[1720897826007,0.8724291,140.14,140.13,11.99]
[1720897827508,0.8724291,140.14,140.09,1.42327357]
[1720897827714,0.8724291,140.14,140.13,11.99]
[1720897829213,0.8724291,140.14,140.08,65.0]
[1720897829510,0.8724291,140.14,140.13,11.99]
[1720897829711,0.8724291,140.14,140.08,65.0]
[1720897829905,0.8724291,140.14,140.13,11.99]
[1720897830815,0.8724291,140.14,140.08,65.0]
[1720897830996,0.8724291,140.14,140.13,11.99]
[1720897833136,0.8724291,140.14,140.08,65.0]
[1720897833303,0.8724291,140.14,140.13,11.99]
[1720897837723,0.8724291,140.14,140.13,23.98]
[1720897837905,0.8724291,140.14,140.13,56.99]
[1720897838306,0.8724291,140.14,140.13,68.98]
[1720897843235,0.8724291,140.14,140.13,56.99]
[1720897845009,0.8724291,140.14,140.09,15.5842]
[1720897845215,0.8724291,140.14,140.13,11.99]
[1720897850531,0.8724291,140.14,140.13,56.99]
[1720897852024,0.8724291,140.14,140.08,20.0]
[1720897852216,0.8724291,140.14,140.13,11.99]
[1720897854317,0.8724291,140.14,140.13,88.98]
[1720897855629,0.8724291,140.14,140.13,76.99]
[1720897856724,0.8724291,140.14,140.13,88.98]
[1720897862447,0.8724291,140.14,140.13,65.0]
[1720897862623,0.8724291,140.14,140.13,88.98]
[1720897864056,21.4582,140.19,140.13,88.98]
[1720897864235,21.4582,140.19,140.18,11.99]
[1720897866438,15.2103,140.19,140.18,11.99]
[1720897867044,21.5297,140.22,140.18,11.99]
[1720897867244,21.5297,140.22,140.21,11.99]
[1720897873034,15.0122,140.22,140.21,11.99]
[1720897874736,6.5175,140.25,140.21,11.99]
[1720897874959,6.5175,140.25,140.22,11.99]
[1720897875850,6.5175,140.25,140.21,11.99]
[1720897876659,6.5175,140.25,140.22,11.99]
[1720897878941,6.5175,140.25,140.23,11.99]
[1720897879633,6.5175,140.25,140.22,11.99]
[1720897881556,6.5175,140.25,140.23,11.99]
[1720897884851,6.5175,140.25,140.24,11.99]
[1720897889265,6.5175,140.25,140.14,84.5437]
[1720897889564,6.5175,140.25,140.23,11.99]
[1720897890180,6.5175,140.25,140.22,11.99]
[1720897891579,6.5175,140.25,140.23,11.99]
[1720897891753,6.5175,140.25,140.24,11.99]
[1720897892240,6.5175,140.25,140.23,10.93]
[1720897892442,6.5175,140.25,140.23,11.99]
[1720897900365,6.5175,140.25,140.24,11.99]
[1720897901272,6.5175,140.25,140.23,11.99]
[1720897902144,6.5175,140.25,140.24,11.99]
[1720897905360,15.0122,140.26,140.24,11.99]
[1720897905964,15.0122,140.26,140.22,1.42600595]
[1720897906174,15.0122,140.26,140.25,11.99]
[1720897906663,15.0122,140.26,140.18,15.5278]
[1720897906664,15.0122,140.26,140.24,11.99]
[1720897911761,15.0122,140.26,140.18,15.5278]
[1720897912082,15.0122,140.26,140.19,65.0]
[1720897912269,15.0122,140.26,140.23,11.99]
[1720897912662,15.0122,140.26,140.19,65.0]
[1720897912974,6.6237,140.25,140.17,9.14799404]
[1720897913177,18.6137,140.25,140.2,11.99]
[1720897913382,6.6237,140.25,140.2,11.99]
[1720897913567,6.6237,140.25,140.22,11.99]
[1720897915465,6.6237,140.25,140.21,11.99]
[1720897916382,6.6237,140.25,140.22,11.99]
[1720897919184,6.6237,140.25,140.18,1.4262158]
[1720897919489,6.6237,140.25,140.21,11.99]
[1720897921291,6.6237,140.25,140.18,20.0]
[1720897921675,6.6237,140.25,140.21,11.99]
[1720897923485,6.6237,140.25,140.19,11.99]
[1720897923671,11.99,140.24,140.18,20.0]
[1720897923873,11.99,140.24,140.19,11.99]
[1720897924087,15.1318,140.22,140.18,11.99]
[1720897924268,27.1218,140.22,140.14,7.95657111]
[1720897924472,27.1218,140.22,140.17,11.99]
[1720897925483,6.3059,140.21,140.17,11.99]
[1720897927187,6.3059,140.21,140.18,11.99]
[1720897930997,6.3059,140.21,140.14,7.95657111]
[1720897931183,6.3059,140.21,140.17,11.99]
[1720897931569,18.2959,140.21,140.16,11.99]
[1720897931776,18.2959,140.21,140.13,9.14799404]
[1720897932096,11.99,140.2,140.14,20.0]
[1720897932301,15.1318,140.19,140.14,20.0]
[1720897932597,15.1318,140.19,140.15,11.99]
[1720897934796,27.1218,140.19,140.14,33.41696593]
[1720897934977,27.1218,140.19,140.11,7.95657111]
[1720897935181,27.1218,140.19,140.14,11.99]
[1720897936394,27.1218,140.19,140.15,11.99]
[1720897936595,27.1218,140.19,140.14,11.99]
[1720897939986,15.1318,140.19,140.14,11.99]
[1720897940379,15.1318,140.19,140.15,11.99]
[1720897943302,27.1218,140.19,140.14,11.99]
[1720897943507,27.1218,140.19,140.12,20.0]
[1720897943685,27.1218,140.19,140.14,11.99]
[1720897943880,11.99,140.18,140.12,20.0]
[1720897944102,6.2624,140.17,140.1,20.0]
[1720897944298,6.2624,140.17,140.13,11.99]
[1720897945312,6.2624,140.17,140.14,11.99]
[1720897947612,6.2624,140.17,140.15,11.99]
[1720897948910,15.1318,140.19,140.1,0.75255317]
[1720897949101,15.1318,140.19,140.16,11.99]
[1720897949418,15.1318,140.19,140.1,24.53435058]
[1720897949419,27.1218,140.19,140.1,24.53435058]
[1720897949613,27.1218,140.19,140.14,11.99]
[1720897950192,27.1218,140.19,140.11,45.0]
[1720897950403,27.1218,140.19,140.14,11.99]
[1720897953797,15.1318,140.19,140.14,11.99]
[1720897954200,15.1318,140.19,140.15,11.99]
[1720897956225,15.1318,140.19,140.11,45.0]
[1720897956431,15.1318,140.19,140.15,11.99]
[1720897958022,15.1318,140.19,140.16,12.48553736]
[1720897958210,15.1318,140.19,140.17,11.99]
[1720897960726,15.1318,140.19,140.16,11.99]
[1720897961705,15.1318,140.19,140.12,20.0]
[1720897961899,15.1318,140.19,140.15,11.99]
[1720897964403,15.1318,140.19,140.16,11.99]
[1720897965211,15.1318,140.19,140.13,1.42678624]
[1720897965507,15.1318,140.19,140.15,11.99]
[1720897965906,14.1318,140.19,140.15,11.99]
[1720897966201,14.1318,140.19,140.13,1.42678624]
[1720897966410,14.1318,140.19,140.15,11.99]
[1720897966911,14.1318,140.19,140.14,11.99]
[1720897967512,14.1318,140.19,140.12,20.0]
[1720897967711,26.1218,140.19,140.14,11.99]
[1720897968430,18.0791,140.18,140.1,16.10833503]
[1720897968611,11.99,140.17,140.12,11.99]
[1720897970321,11.99,140.17,140.07,17.57400959]
[1720897970527,11.99,140.17,140.12,11.99]
[1720897971333,11.99,140.17,140.08,65.0]
[1720897971535,27.4513,140.16,140.11,11.99]
[1720897971718,27.4513,140.16,140.08,65.0]
[1720897972032,18.0791,140.15,140.08,20.0]
[1720897972417,18.0791,140.15,140.1,11.99]
[1720897973231,18.0791,140.15,140.08,20.0]
[1720897974010,18.0791,140.15,140.08,20.43398836]
[1720897974445,6.0891,140.15,140.08,20.43398836]
[1720897976241,6.0891,140.15,140.12,11.99]
[1720897979141,6.0891,140.15,140.11,11.99]
[1720897979340,6.0891,140.15,140.08,20.0]
[1720897979537,18.0791,140.15,140.07,20.0]
[1720897980027,18.0791,140.15,140.1,11.99]
[1720897980731,6.0891,140.15,140.1,11.99]
[1720897981046,6.0891,140.15,140.11,11.99]
[1720897982149,6.0891,140.15,140.07,67.96]
[1720897982354,6.0891,140.15,140.08,45.0]
[1720897982641,6.0891,140.15,140.09,20.0]
[1720897984554,6.0891,140.15,140.08,45.0]
[1720897985058,6.0891,140.15,140.09,20.0]
[1720897987461,16.2958,140.14,140.09,20.0]
[1720897987763,16.2958,140.14,140.08,20.0]
[1720897990961,16.2958,140.14,140.09,45.0]
[1720897991179,16.2958,140.14,140.12,11.99]
[1720897993257,16.2958,140.14,140.11,11.99]
[1720897996279,16.2958,140.14,140.12,11.99]
[1720897997182,15.7958,140.14,140.12,11.99]
[1720898003592,15.7958,140.14,140.1,1.42722033]
[1720898003789,15.7958,140.14,140.12,11.99]
[1720898004267,15.7958,140.14,140.11,11.99]
[1720898008894,15.7958,140.14,140.08,20.0]
[1720898009108,27.7858,140.14,140.09,11.99]
[1720898009776,15.7958,140.14,140.09,11.99]
[1720898010691,27.7858,140.14,140.09,11.99]
[1720898011490,6.3401,140.12,140.06,20.0]
[1720898011802,6.3401,140.12,140.08,11.99]
[1720898013899,15.5468,140.11,140.07,11.99]
[1720898017578,15.5468,140.11,140.08,11.99]
[1720898018209,15.5468,140.11,140.06,20.0]
[1720898018506,15.5468,140.11,140.08,11.99]
[1720898023317,15.5468,140.11,140.06,20.0]
[1720898023500,15.5468,140.11,140.07,11.99]
[1720898025327,15.5468,140.11,140.06,11.99]
[1720898025512,27.5368,140.11,140.06,11.99]
[1720898026811,15.5468,140.11,140.06,11.99]
[1720898028414,15.5468,140.11,140.07,11.99]
[1720898029917,27.5368,140.11,140.06,11.99]
[1720898039327,10.0,140.15,140.0,15.03282876]
[1720898039328,34.0204,140.1,140.0,15.03282876]
[1720898039540,11.99,140.09,140.04,11.99]
[1720898040818,22.0304,140.1,140.05,11.99]
[1720898041003,34.0204,140.1,140.05,11.99]
[1720898041206,34.0204,140.1,140.0,15.03282876]
[1720898041408,34.0204,140.1,140.05,11.99]
[1720898042721,22.0304,140.1,140.05,11.99]
[1720898042927,22.0304,140.1,140.06,11.99]
[1720898043739,22.0304,140.1,140.07,11.99]
[1720898044024,22.0304,140.1,140.08,11.99]
[1720898044529,22.0304,140.1,140.09,11.99]
[1720898047634,11.99,140.15,140.09,11.99]
[1720898047818,11.99,140.15,140.1,11.99]
[1720898048334,22.0304,140.16,140.09,11.99]
[1720898048335,11.99,140.14,140.09,11.99]
[1720898051130,34.0204,140.16,140.11,11.99]
[1720898051338,22.0304,140.16,140.12,11.99]
[1720898052934,34.0204,140.16,140.11,11.99]
[1720898053437,34.0204,140.16,140.07,11.99]
[1720898053438,11.99,140.15,140.1,11.99]
[1720898053817,22.0304,140.16,140.11,11.99]
[1720898054426,22.0304,140.16,140.12,11.99]
[1720898054736,34.0204,140.16,140.11,11.99]
[1720898057426,34.0204,140.16,140.05,8.42601555]
[1720898057644,34.0204,140.16,140.11,11.99]
[1720898058754,34.0204,140.16,140.12,11.99]
[1720898059833,34.0204,140.16,140.11,11.99]
[1720898062347,34.0204,140.16,140.12,11.99]
[1720898062544,22.0304,140.16,140.12,11.99]
[1720898070062,22.0304,140.16,140.13,11.99]
[1720898071159,22.0304,140.16,140.12,11.99]
[1720898071843,22.0304,140.16,140.11,11.99]
[1720898072867,22.0304,140.16,140.12,11.99]
[1720898073849,22.0304,140.16,140.06,45.0]
[1720898074049,22.0304,140.16,140.12,11.99]
[1720898076451,22.0304,140.16,140.07,67.96]
[1720898076452,22.0304,140.16,140.13,11.99]
[1720898076744,22.0304,140.16,140.12,11.99]
[1720898076943,22.0304,140.16,140.13,11.99]
[1720898078243,22.0304,140.16,140.13,12.01]
[1720898080268,22.0304,140.16,140.07,68.04]
[1720898080447,22.0304,140.16,140.13,12.01]
[1720898083564,22.0304,140.16,140.12,12.01]
[1720898086846,22.0304,140.16,140.13,12.01]
[1720898091563,22.0304,140.16,140.14,12.01]
[1720898094379,22.0304,140.16,140.13,12.01]
[1720898101461,22.0304,140.16,140.14,12.01]
[1720898102572,22.0304,140.16,140.13,12.01]
[1720898102882,22.0304,140.16,140.15,12.01]
[1720898103084,22.6757,140.2,140.15,12.01]
[1720898103267,22.6757,140.2,140.16,12.01]
[1720898108281,22.6757,140.2,140.09,1.42692388]
[1720898108485,22.6757,140.2,140.16,12.01]
[1720898110389,34.6857,140.2,140.16,12.01]
[1720898110790,22.6757,140.2,140.16,12.01]
[1720898111090,22.6757,140.2,140.17,12.01]
[1720898111395,22.6757,140.2,140.16,12.01]
[1720898112290,34.6857,140.2,140.15,12.01]
[1720898114696,34.6757,140.2,140.15,12.0]
[1720898118773,34.6757,140.2,140.09,71.3668]
[1720898119095,12.0,140.19,140.14,12.0]
[1720898121081,34.6757,140.2,140.15,12.0]
[1720898121902,22.6757,140.2,140.15,12.0]
[1720898122107,34.6757,140.2,140.15,12.0]
[1720898124082,22.6757,140.2,140.16,12.0]
[1720898127507,12.0,140.19,140.14,12.0]
[1720898128031,34.6757,140.2,140.15,12.0]
[1720898133404,22.6757,140.2,140.15,12.0]
[1720898133610,22.6757,140.2,140.16,12.0]
[1720898135010,22.6757,140.2,140.15,12.0]
[1720898135394,34.6757,140.2,140.15,12.0]
[1720898136022,34.6757,140.2,140.09,37.12478737]
[1720898136201,34.6757,140.2,140.14,12.0]
[1720898137819,34.6757,140.2,140.15,12.0]
[1720898141113,22.6757,140.2,140.16,12.0]
[1720898141803,22.6757,140.2,140.17,12.0]
[1720898149425,22.6757,140.2,140.16,12.0]
[1720898152936,22.6757,140.2,140.17,12.0]
[1720898153325,22.6757,140.2,140.18,12.0]
[1720898156441,22.6757,140.2,140.14,12.0]
[1720898156643,22.6757,140.2,140.17,12.0]
[1720898157142,22.6757,140.2,140.1,54.24400305]
[1720898157438,22.6757,140.2,140.15,12.0]
[1720898159019,22.6757,140.2,140.16,12.0]
[1720898161942,22.6757,140.2,140.17,12.0]
[1720898162923,22.6757,140.2,140.18,12.0]
[1720898163621,22.6757,140.2,140.19,12.0]
[1720898164321,16.3348,140.2,140.19,12.0]
[1720898166744,6.1357,140.23,140.19,12.0]
[1720898166745,21.3969,140.23,140.19,12.0]
[1720898167345,21.3969,140.23,140.2,12.0]
[1720898168423,21.3969,140.23,140.21,12.0]
[1720898168626,21.3969,140.23,140.14,48.0]
[1720898168627,21.3969,140.26,140.22,12.0]
[1720898168828,21.3969,140.26,140.23,12.0]
[1720898169042,21.3969,140.26,140.22,12.0]
[1720898169259,33.3969,140.26,140.21,12.0]
[1720898169425,21.3969,140.26,140.22,12.0]
[1720898170364,33.3969,140.26,140.21,12.0]
[1720898171165,21.3969,140.26,140.22,12.0]
[1720898174454,21.3969,140.26,140.23,12.0]
[1720898175743,21.3969,140.26,140.22,12.0]
[1720898178663,21.3969,140.26,140.17,16.3854]
[1720898178957,21.3969,140.26,140.22,12.0]
[1720898179333,21.3969,140.26,140.21,12.0]
[1720898179539,12.0,140.25,140.2,12.0]
[1720898180853,33.3969,140.26,140.21,12.0]
[1720898181264,21.3969,140.26,140.22,12.0]
[1720898182961,21.3969,140.26,140.23,12.0]
[1720898183334,21.3969,140.26,140.22,12.0]
[1720898184960,21.3969,140.26,140.23,12.0]
[1720898185340,21.3969,140.26,140.22,12.0]
[1720898186968,21.3969,140.26,140.18,65.0]
[1720898187145,21.3969,140.26,140.22,12.0]
[1720898187346,21.3969,140.26,140.23,12.0]
[1720898188642,21.3969,140.26,140.22,12.0]
[1720898189861,21.3969,140.26,140.18,65.0]
[1720898190167,21.3969,140.26,140.22,12.0]
[1720898190348,21.3969,140.26,140.23,12.0]
[1720898194275,0.8724291,140.28,140.24,12.0]
[1720898195276,0.8724291,140.28,140.18,65.0]
[1720898195573,0.8724291,140.28,140.22,12.0]
[1720898195574,12.0,140.27,140.22,12.0]
[1720898195774,12.8724291,140.28,140.23,12.0]
[1720898195974,0.8724291,140.28,140.23,12.0]
[1720898200286,12.8724291,140.28,140.18,65.0]
[1720898200581,12.8724291,140.28,140.23,12.0]
[1720898201966,12.0,140.27,140.22,12.0]
[1720898205906,33.3461,140.26,140.21,12.0]
[1720898206380,21.3461,140.26,140.18,20.0]
[1720898206581,21.3461,140.26,140.22,12.0]
[1720898208795,21.3461,140.26,140.23,12.0]
[1720898209886,21.3461,140.26,140.22,12.0]
[1720898212487,21.3461,140.26,140.24,12.0]
[1720898214491,0.8724291,140.28,140.25,12.0]
[1720898214793,0.8724291,140.28,140.22,1.42602322]
[1720898214794,0.8724291,140.28,140.26,12.0]
[1720898217197,0.8724291,140.28,140.25,12.0]
[1720898218200,0.8724291,140.28,140.24,12.0]
[1720898218506,0.8724291,140.28,140.19,45.0]
[1720898218683,0.8724291,140.28,140.24,12.0]
[1720898220384,0.8724291,140.28,140.19,45.0]
[1720898220588,0.8724291,140.28,140.24,12.0]
[1720898221096,0.8724291,140.28,140.21,48.0]
[1720898221097,0.8724291,140.28,140.25,12.0]
[1720898222294,0.8724291,140.28,140.22,1.31832653]
[1720898222295,0.8724291,140.28,140.26,12.0]
[1720898223112,0.8724291,140.28,140.25,12.0]
[1720898224010,0.8724291,140.28,140.26,12.0]
[1720898227707,0.8724291,140.28,140.27,12.0]
[1720898242914,0.8724291,140.28,140.27,89.0]
[1720898243609,0.8724291,140.28,140.27,69.0]
[1720898244004,0.8724291,140.28,140.27,89.0]
[1720898245905,0.8724291,140.28,140.27,90.41981329]
[1720898249711,0.8724291,140.28,140.27,89.0]
[1720898250922,0.8724291,140.28,140.27,77.0]
[1720898251433,0.8724291,140.28,140.27,89.0]
[1720898260733,0.8724291,140.28,140.27,44.0]
[1720898260947,0.8724291,140.28,140.27,32.0]
[1720898262018,0.8724291,140.28,140.27,77.0]
[1720898262221,0.8724291,140.28,140.27,77.46385947]
[1720898262437,0.8724291,140.28,140.27,45.0]
[1720898262644,0.8724291,140.28,140.27,12.0]
[1720898264139,0.8724291,140.28,140.27,32.0]
[1720898267550,0.8724291,140.28,140.27,97.69877182]
[1720898268045,12.8670555,140.41,140.27,142.12478737]
[1720898268046,15.0409,140.36,140.27,142.12478737]
[1720898268255,15.0409,140.36,140.33,12.0]
[1720898269426,15.0409,140.36,140.32,12.0]
[1720898272946,27.0409,140.36,140.31,12.0]
[1720898274048,27.0409,140.36,140.28,8.69877182]
[1720898274251,27.0409,140.36,140.31,12.0]
[1720898274951,27.0409,140.36,140.28,8.69877182]
[1720898275139,12.0,140.35,140.29,20.0]
[1720898275342,15.0409,140.33,140.27,20.0]
[1720898275556,27.0409,140.33,140.27,20.0]
[1720898275849,27.0409,140.33,140.28,12.0]
[1720898276023,15.0409,140.33,140.29,12.0]
[1720898276325,15.0409,140.33,140.25,20.0]
[1720898276532,15.0409,140.33,140.29,12.0]
[1720898280245,27.0409,140.33,140.28,12.0]
[1720898281554,6.1046,140.31,140.25,20.0]
[1720898281868,6.1046,140.31,140.27,12.0]
[1720898283861,6.1046,140.31,140.28,12.0]
[1720898285858,6.1046,140.31,140.29,1.42561252]
[1720898286063,6.1046,140.31,140.3,12.0]
[1720898288365,6.1046,140.31,140.29,12.0]
[1720898289155,6.1046,140.31,140.3,12.0]
[1720898289461,6.1046,140.31,140.25,20.0]
[1720898289668,6.1046,140.31,140.29,12.0]
[1720898289961,6.1046,140.31,140.25,20.0]
[1720898290152,6.1046,140.31,140.27,12.0]
[1720898290749,6.1046,140.31,140.25,20.0]
[1720898290951,6.1046,140.31,140.27,12.0]
[1720898291765,6.1046,140.31,140.24,8.42601555]
[1720898291766,16.383,140.3,140.24,8.42601555]
[1720898291956,12.0,140.29,140.24,20.42601555]
[1720898292347,28.383,140.3,140.25,12.0]
[1720898292864,16.383,140.3,140.25,12.0]
[1720898294449,16.383,140.3,140.21,2.89923135]
[1720898294450,12.0,140.28,140.21,2.89923135]
[1720898294650,6.1046,140.27,140.23,12.0]
[1720898296655,6.1046,140.27,140.24,12.0]
[1720898296859,6.1046,140.27,140.25,12.0]
[1720898297370,6.1046,140.27,140.2,19.67542372]
[1720898297554,6.1046,140.27,140.24,12.0]
[1720898302957,6.1046,140.27,140.21,28.42601555]
[1720898303149,28.2196,140.26,140.21,40.42601555]
[1720898304157,16.2196,140.26,140.22,12.0]
[1720898304357,16.2196,140.26,140.23,12.0]
[1720898304548,16.2196,140.26,140.21,28.42601555]
[1720898304752,16.2196,140.26,140.22,12.0]
[1720898306270,6.0745,140.25,140.16,7.46699153]
[1720898306455,28.2196,140.23,140.11,15.0012]
[1720898306653,12.0,140.22,140.12,389.2]
[1720898306861,6.0745,140.21,140.12,389.2]
[1720898307071,16.2196,140.2,140.15,12.0]
[1720898307297,16.2196,140.2,140.17,12.0]
[1720898307655,16.2196,140.2,140.08,13.90551013]
[1720898307967,28.2196,140.2,140.08,13.90551013]
[1720898308273,16.2196,140.2,140.08,13.90551013]
[1720898308472,12.0,140.19,140.14,12.0]
[1720898309479,12.0,140.19,140.08,6.80014888]
[1720898309785,12.0,140.19,140.14,12.0]
[1720898310572,12.0,140.19,140.08,6.80014888]
[1720898310573,6.0745,140.18,140.08,6.80014888]
[1720898310772,6.0745,140.18,140.14,12.0]
[1720898311187,6.0745,140.18,140.15,12.0]
[1720898312205,6.0745,140.18,140.14,12.0]
[1720898320707,6.0745,140.18,140.15,12.0]
[1720898321000,6.0745,140.18,140.16,12.0]
[1720898321819,6.0745,140.18,140.15,12.0]
[1720898322489,6.0745,140.18,140.16,12.0]
[1720898323618,6.0745,140.18,140.15,12.0]
[1720898328212,6.0745,140.18,140.07,63.0012]
[1720898328520,6.0745,140.18,140.14,12.0]
[1720898329610,6.0745,140.18,140.08,65.0]
[1720898329803,6.0745,140.18,140.14,12.0]
[1720898330600,15.5723,140.17,140.13,12.0]
[1720898331033,15.5723,140.17,140.14,12.0]